[Event "GER-ch Youth U16w 2019"]
[Site "Willingen"]
[Date "2019.06.11"]
[Round "4.9"]
[White "Schneider, Katharina"]
[Black "Rudolph, Eva"]
[Result "0-1"]
[ECO "C42"]
[WhiteElo "1784"]
[BlackElo "1786"]
[Annotator "NA"]
[PlyCount "102"]
[EventDate "2019.06.07"]
[EventType "swiss"]
[EventRounds "9"]
[EventCountry "GER"]
[SourceTitle "playchess.com"]
[Source "ChessBase"]
[SourceQuality "1"]
[TimeControl "40/5400+30:1800+30"]

1. e4 {[%emt 0:00:00]} e5 {[%emt 0:00:00]} 2. Nf3 {[%emt 0:00:00]} Nf6 3. Nxe5 {[%emt 0:00:00]} Nxe4 {[%emt 0:00:00]} 4. Qe2 {[%emt 0:00:58]} Qe7 {[%emt 0:00:00]} 5. Qxe4 {[%emt 0:01:42]} d6 {[%emt 0:00:05]} 6. d4 dxe5 {[%emt 0:00:35]} 7. dxe5 {[%emt 0:06:19]} Nc6 8. f4 {[%emt 0:12:53]} Bg4 {[%emt 0:01:43]} 9. Be2 f5 {[%emt 0:09:00]} 10. Qc4 {[%emt 0:13:12]} O-O-O {[%emt 0:04:04]} 11. Be3 {[%emt 0:04:56]} g5 {[%emt 0:05:35]} 12. g3 {[%emt 0:14:20]} Bxe2 {[%emt 0:31:51]} 13. Qxe2 {[%emt 0:01:47]} gxf4 14. gxf4 {[%emt 0:02:44]} Nd4 {[%emt 0:04:08]} 15. Qf2 {[%emt 0:03:35]} Qc5 {[%emt 0:03:02]} 16. Na3 {[%emt 0:02:14]} Qd5 {[%emt 0:03:29]} 17. O-O-O {[%emt 0:06:05]} Bxa3 {[%emt 0:14:52]} 18. bxa3 {[%emt 0:03:21]} Ne2+ 19. Qxe2 {[%emt 0:08:20]} Qxa2 {[%emt 0:00:48]} 20. Bd4 {[%emt 0:03:23]} Rxd4 21. Rxd4 {[%emt 0:00:03]} Qa1+ {[%emt 0:00:26]} 22. Kd2 {[%emt 0:00:07]} Qxd4+ {[%emt 0:00:11]} 23. Qd3 {[%emt 0:01:12]} Qxf4+ {[%emt 0:01:00]} 24. Ke2 {[%emt 0:00:32]} Qxe5+ {[%emt 0:00:33]} 25. Kf2 {[%emt 0:00:31]} Qc5+ {[%emt 0:01:09]} 26. Kf1 {[%emt 0:00:37]} Rd8 {[%emt 0:01:04]} 27. Qe2 {[%emt 0:01:06]} Qd5 {[%emt 0:00:30]} 28. Rg1 {[%emt 0:00:30]} Qd1+ {[%emt 0:00:30]} 29. Qxd1 {[%emt 0:00:30]} Rxd1+ {[%emt 0:00:30]} 30. Kf2 {[%emt 0:00:30]} Rxg1 {[%emt 0:00:30]} 31. Kxg1 {[%emt 0:00:30]} Kd7 {[%emt 0:00:30]} 32. Kf2 {[%emt 0:00:30]} Ke6 {[%emt 0:00:30]} 33. Kf3 {[%emt 0:00:30]} Ke5 {[%emt 0:00:30]} 34. h4 {[%emt 0:00:30]} b5 {[%emt 0:00:30]} 35. c3 {[%emt 0:00:30]} h5 {[%emt 0:00:30]} 36. Ke3 {[%emt 0:00:30]} f4+ {[%emt 0:00:30]} 37. Kd3 {[%emt 0:00:30]} c5 {[%emt 0:00:30]} 38. c4 {[%emt 0:00:30]} bxc4+ {[%emt 0:00:30]} 39. Kxc4 {[%emt 0:00:30]} f3 {[%emt 0:00:30]} 40. Kd3 {[%emt 0:00:30]} Kf4 {[%emt 0:00:30]} 41. Kd2 {[%emt 0:30:30]} Kg3 {[%emt 0:30:30]} 42. Ke1 {[%emt 0:00:30]} Kg2 {[%emt 0:00:30]} 43. Kd2 {[%emt 0:00:30]} f2 {[%emt 0:00:30]} 44. Kc3 {[%emt 0:00:30]} f1=Q {[%emt 0:00:30]} 45. Kb3 {[%emt 0:00:30]} Qd3+ {[%emt 0:00:30]} 46. Ka4 {[%emt 0:00:30]} c4 {[%emt 0:00:30]} 47. Kb4 {[%emt 0:00:30]} c3 {[%emt 0:00:30]} 48. a4 {[%emt 0:00:30]} c2 {[%emt 0:00:30]} 49. a5 {[%emt 0:00:30]} c1=Q {[%emt 0:00:30]} 50. a6 {[%emt 0:00:30]} Qdc4+ {[%emt 0:00:30]} 51. Ka5 {[%emt 0:00:30]} Qa3# {[%emt 0:00:30] normal} 0-1

[Event "GER-ch Youth U16w 2019"]
[Site "Willingen"]
[Date "2019.06.11"]
[Round "4.10"]
[White "Meijerink, Inken"]
[Black "Sinnhoefer, Lilian"]
[Result "1/2-1/2"]
[ECO "C54"]
[WhiteElo "1681"]
[BlackElo "1396"]
[Annotator "NA"]
[PlyCount "76"]
[EventDate "2019.06.07"]
[EventType "swiss"]
[EventRounds "9"]
[EventCountry "GER"]
[SourceTitle "playchess.com"]
[Source "ChessBase"]
[SourceQuality "1"]
[TimeControl "40/5400+30:1800+30"]

1. e4 {[%emt 0:00:00]} e5 {[%emt 0:00:00]} 2. Nf3 {[%emt 0:00:00]} Nc6 {[%emt 0:00:00]} 3. Bc4 {[%emt 0:00:03]} Bc5 {[%emt 0:00:18]} 4. c3 {[%emt 0:00:14]} Nf6 {[%emt 0:05:32]} 5. d4 {[%emt 0:00:22]} exd4 {[%emt 0:00:52]} 6. cxd4 {[%emt 0:00:07]} Bb4+ {[%emt 0:00:46]} 7. Bd2 {[%emt 0:00:06]} Bxd2+ {[%emt 0:00:40]} 8. Nbxd2 {[%emt 0:00:08]} d5 {[%emt 0:03:06]} 9. exd5 {[%emt 0:00:36]} Nxd5 {[%emt 0:00:56]} 10. Qb3 {[%emt 0:00:19]} Na5 {[%emt 0:09:49]} 11. Qa4+ {[%emt 0:00:34]} c6 {[%emt 0:03:55]} 12. Bxd5 {[%emt 0:01:11]} Qxd5 {[%emt 0:05:27]} 13. O-O {[%emt 0:00:08]} b6 {[%emt 0:08:45]} 14. Rfe1+ {[%emt 0:01:17]} Be6 {[%emt 0:02:24]} 15. Re5 {[%emt 0:02:01]} Qd7 {[%emt 0:05:27]} 16. Ng5 {[%emt 0:13:57]} O-O {[%emt 0:06:03]} 17. Qc2 {[%emt 0:00:40]} g6 {[%emt 0:01:39]} 18. Nxe6 {[%emt 0:14:14]} fxe6 {[%emt 0:02:41]} 19. Nf3 {[%emt 0:01:56]} Rf5 {[%emt 0:09:36]} 20. Rae1 {[%emt 0:01:34]} Re8 {[%emt 0:05:13]} 21. b4 {[%emt 0:05:42]} Nb7 {[%emt 0:04:32]} 22. Qb3 {[%emt 0:00:29]} Rxe5 {[%emt 0:02:30]} 23. Nxe5 {[%emt 0:02:18]} Qd5 {[%emt 0:03:40]} 24. Qc3 {[%emt 0:02:13]} Nd8 {[%emt 0:04:00]} 25. a4 {[%emt 0:06:01]} a6 {[%emt 0:06:14]} 26. Rc1 {[%emt 0:01:50]} Rf8 {[%emt 0:00:23]} 27. f3 {[%emt 0:02:54]} Rf4 {[%emt 0:01:14]} 28. Nxc6 {[%emt 0:07:44]} Nxc6 {[%emt 0:00:40]} 29. Qxc6 {[%emt 0:00:03]} Qxd4+ {[%emt 0:00:29]} 30. Kh1 {[%emt 0:00:08]} Qe3 {[%emt 0:02:09]} 31. b5 {[%emt 0:07:10]} a5 {[%emt 0:01:52]} 32. h3 {[%emt 0:02:25]} Kg7 {[%emt 0:02:16]} 33. Qc7+ {[%emt 0:04:39]} Kh6 {[%emt 0:00:23]} 34. Qc2 {[%emt 0:00:38]} Qd4 {[%emt 0:01:14]} 35. Qc6 {[%emt 0:03:41]} Qe3 {[%emt 0:01:10]} 36. Ra1 {[%emt 0:01:25]} Kg7 {[%emt 0:00:42]} 37. Qc7+ {[%emt 0:01:43]} Kh6 {[%emt 0:00:29]} 38. Qc6 {[%emt 0:08:56]} Kg7 {[%emt 0:00:31] normal} 1/2-1/2

[Event "GER-ch Youth U16w 2019"]
[Site "Willingen"]
[Date "2019.06.11"]
[Round "4.11"]
[White "Peschel, Julia"]
[Black "Dietz, Helena"]
[Result "1-0"]
[ECO "C54"]
[WhiteElo "1275"]
[BlackElo "1534"]
[Annotator "NA"]
[PlyCount "64"]
[EventDate "2019.06.07"]
[EventType "swiss"]
[EventRounds "9"]
[EventCountry "GER"]
[SourceTitle "playchess.com"]
[Source "ChessBase"]
[SourceQuality "1"]
[TimeControl "40/5400+30:1800+30"]

1. e4 {[%emt 0:00:00]} e5 {[%emt 0:00:00]} 2. Nf3 {[%emt 0:00:00]} Nc6 {[%emt 0:00:00]} 3. Bc4 {[%emt 0:00:00]} Bc5 {[%emt 0:00:00]} 4. c3 {[%emt 0:00:18]} Nf6 {[%emt 0:00:27]} 5. d3 {[%emt 0:00:45]} d6 {[%emt 0:00:28]} 6. Bb3 {[%emt 0:05:02]} Be6 {[%emt 0:01:34]} 7. Bc2 {[%emt 0:00:30]} Bb6 {[%emt 0:02:41]} 8. Nbd2 {[%emt 0:01:22]} Qe7 {[%emt 0:06:24]} 9. Nf1 {[%emt 0:02:54]} O-O-O {[%emt 0:09:23]} 10. c4 {[%emt 0:14:03]} Nd4 {[%emt 0:09:22]} 11. Nxd4 {[%emt 0:01:46]} Bxd4 {[%emt 0:01:20]} 12. Ne3 {[%emt 0:00:44]} Qd7 {[%emt 0:14:02]} 13. Rb1 {[%emt 0:10:08]} Bg4 {[%emt 0:01:13]} 14. f3 {[%emt 0:02:31]} Be6 {[%emt 0:04:51]} 15. Ba4 {[%emt 0:03:23]} c6 {[%emt 0:04:26]} 16. Nc2 {[%emt 0:01:01]} Bb6 {[%emt 0:07:28]} 17. Be3 {[%emt 0:05:14]} Nh5 {[%emt 0:00:11]} 18. Bxb6 {[%emt 0:04:00]} axb6 {[%emt 0:05:05]} 19. Ne3 Qe7 20. Qd2 {[%emt 0:10:05]} Rhf8 {[%emt 0:06:09]} 21. Bc2 {[%emt 0:04:07]} g5 {[%emt 0:05:35]} 22. d4 {[%emt 0:10:27]} exd4 {[%emt 0:08:10]} 23. Qxd4 {[%emt 0:00:35]} Kc7 {[%emt 0:00:46]} 24. Kd2 {[%emt 0:08:03]} Rfe8 {[%emt 0:03:17]} 25. Rhe1 {[%emt 0:00:58]} Rg8 {[%emt 0:07:30]} 26. Nf5 {[%emt 0:02:21]} Qd7 {[%emt 0:01:14]} 27. Rbd1 {[%emt 0:01:59]} g4 {[%emt 0:00:49]} 28. fxg4 {[%emt 0:00:58]} Rxg4 {[%emt 0:00:02]} 29. g3 {[%emt 0:00:11]} Bxf5 {[%emt 0:00:22]} 30. h3 {[%emt 0:00:55]} Rxg3 {[%emt 0:00:11]} 31. exf5 {[%emt 0:00:27] normal} Rg2+ {[%emt 0:01:11]} 32. Kc1 {[%emt 0:00:25]} Ng7 {[%emt 0:01:02] normal} 1-0

[Event "GER-ch Youth U16w 2019"]
[Site "Willingen"]
[Date "2019.06.11"]
[Round "4.12"]
[White "Huppert, Anna"]
[Black "Wucherer, Sophie"]
[Result "0-1"]
[ECO "B23"]
[WhiteElo "1515"]
[BlackElo "1496"]
[Annotator "NA"]
[PlyCount "137"]
[EventDate "2019.06.07"]
[EventType "swiss"]
[EventRounds "9"]
[EventCountry "GER"]
[SourceTitle "playchess.com"]
[Source "ChessBase"]
[SourceQuality "1"]
[TimeControl "40/5400+30:1800+30"]

1. e4 {[%emt 0:00:00]} c5 {[%emt 0:00:00]} 2. Nc3 {[%emt 0:00:00]} e6 {[%emt 0:00:00]} 3. f4 {[%emt 0:00:00]} d5 {[%emt 0:00:16]} 4. e5 {[%emt 0:00:27]} Nc6 {[%emt 0:00:20]} 5. Bb5 {[%emt 0:00:31]} Nge7 {[%emt 0:00:17]} 6. Nf3 {[%emt 0:00:24]} a6 {[%emt 0:00:20]} 7. Bxc6+ {[%emt 0:00:06]} Nxc6 {[%emt 0:00:08]} 8. d4 {[%emt 0:01:34]} Qb6 {[%emt 0:17:46]} 9. Ne2 {[%emt 0:05:20]} Bd7 {[%emt 0:10:43]} 10. Rb1 {[%emt 0:08:17]} cxd4 {[%emt 0:02:04]} 11. Nexd4 {[%emt 0:02:01]} Nxd4 {[%emt 0:00:24]} 12. Nxd4 {[%emt 0:00:48]} Qa5+ {[%emt 0:14:11]} 13. Bd2 {[%emt 0:04:09]} Qxa2 {[%emt 0:01:25]} 14. O-O {[%emt 0:07:15]} Bc5 {[%emt 0:01:26]} 15. Be3 {[%emt 0:02:35]} O-O {[%emt 0:05:33]} 16. Kh1 {[%emt 0:03:55]} Rac8 {[%emt 0:02:25]} 17. Rf3 {[%emt 0:06:29]} f6 {[%emt 0:01:27]} 18. Rh3 {[%emt 0:08:49]} fxe5 {[%emt 0:04:59]} 19. fxe5 {[%emt 0:04:01]} Qc4 {[%emt 0:07:17]} 20. Qd2 {[%emt 0:13:35]} Rf1+ {[%emt 0:04:08]} 21. Rxf1 {[%emt 0:00:13]} Qxf1+ {[%emt 0:00:07]} 22. Bg1 {[%emt 0:00:08]} Bxd4 {[%emt 0:02:11]} 23. Qxd4 {[%emt 0:00:42]} Rxc2 {[%emt 0:00:14]} 24. Rg3 {[%emt 0:02:25]} Qc4 {[%emt 0:02:28]} 25. Qb6 {[%emt 0:06:38]} Qc7 {[%emt 0:02:21]} 26. Qb3 {[%emt 0:04:20]} Rc1 {[%emt 0:01:41]} 27. Qe3 {[%emt 0:01:50]} Bb5 {[%emt 0:01:00]} 28. h3 {[%emt 0:04:50]} b6 {[%emt 0:05:34]} 29. Kh2 {[%emt 0:01:32]} Qc5 {[%emt 0:00:15]} 30. Bf2 {[%emt 0:02:24]} Qxe3 {[%emt 0:00:26]} 31. Bxe3 {[%emt 0:00:39]} Rc2 {[%emt 0:04:32]} 32. Bd4 {[%emt 0:01:52]} Bc4 {[%emt 0:01:06]} 33. b3 {[%emt 0:00:49]} Be2 {[%emt 0:03:49]} 34. Bxb6 {[%emt 0:00:44]} Rd2 {[%emt 0:00:59]} 35. Ba5 {[%emt 0:01:22]} Rd1 {[%emt 0:00:22]} 36. Rc3 {[%emt 0:01:34]} d4 {[%emt 0:00:38]} 37. Rc6 {[%emt 0:01:18]} Kf7 {[%emt 0:00:40]} 38. Kg3 {[%emt 0:03:36]} Bb5 {[%emt 0:00:54]} 39. Rc7+ {[%emt 0:01:24]} Kg6 {[%emt 0:01:06]} 40. Kf4 {[%emt 0:00:37]} Rf1+ {[%emt 0:01:08]} 41. Ke4 {[%emt 0:30:46]} d3 {[%emt 0:30:56]} 42. Re7 {[%emt 0:00:00]} Rf2 {[%emt 0:00:00]} 43. Rxe6+ {[%emt 0:00:00]} Kf7 {[%emt 0:00:00]} 44. Rd6 {[%emt 0:00:00]} Re2+ {[%emt 0:00:00]} 45. Kf4 {[%emt 0:00:00]} Rxg2 {[%emt 0:00:00]} 46. Kf3 {[%emt 0:00:00]} Rb2 {[%emt 0:00:00]} 47. Be1 {[%emt 0:00:00]} Rxb3 {[%emt 0:00:00]} 48. Kg4 {[%emt 0:00:00]} Rb2 {[%emt 0:00:00]} 49. h4 {[%emt 0:00:00]} Ra2 {[%emt 0:00:00]} 50. Kf5 {[%emt 0:00:00]} Bc4 {[%emt 0:00:00]} 51. Rd7+ {[%emt 0:00:00]} Ke8 {[%emt 0:00:00]} 52. Rd4 {[%emt 0:00:00]} Ra4 {[%emt 0:00:00]} 53. Bc3 {[%emt 0:01:31]} Bb5 {[%emt 0:00:16]} 54. Rxa4 {[%emt 0:00:53]} Bxa4 {[%emt 0:00:09]} 55. h5 {[%emt 0:00:08]} Bc2 {[%emt 0:02:01]} 56. Kg5 {[%emt 0:00:17]} Kf7 {[%emt 0:00:27]} 57. h6 {[%emt 0:01:35]} g6 {[%emt 0:00:45]} 58. Kf4 {[%emt 0:00:10]} Ke6 {[%emt 0:00:18]} 59. Ke3 {[%emt 0:00:40]} Kf5 {[%emt 0:00:37]} 60. Kf2 {[%emt 0:00:41]} g5 {[%emt 0:00:16]} 61. Kg3 {[%emt 0:00:50]} Kg6 {[%emt 0:00:52]} 62. Kf3 {[%emt 0:01:18]} Kxh6 {[%emt 0:00:23]} 63. e6 {[%emt 0:01:03]} Kg6 {[%emt 0:00:33]} 64. Kg3 {[%emt 0:01:15]} Kf5 {[%emt 0:00:15]} 65. e7 {[%emt 0:00:26]} Ba4 {[%emt 0:00:10]} 66. Kf3 {[%emt 0:00:12]} h5 {[%emt 0:00:32]} 67. Ke3 {[%emt 0:00:36]} Bb5 {[%emt 0:00:50] normal} 68. e8=Q {[%emt 0:00:45]} Bxe8 {[%emt 0:00:10]} 69. Kxd3 {[%emt 0:00:02] normal} 0-1

[Event "GER-ch Youth U16w 2019"]
[Site "Willingen"]
[Date "2019.06.11"]
[Round "4.13"]
[White "Genova, Magdalina"]
[Black "Jacoby, Angelina"]
[Result "0-1"]
[ECO "A13"]
[WhiteElo "1421"]
[BlackElo "1412"]
[Annotator "NA"]
[PlyCount "91"]
[EventDate "2019.06.07"]
[EventType "swiss"]
[EventRounds "9"]
[EventCountry "GER"]
[SourceTitle "playchess.com"]
[Source "ChessBase"]
[SourceQuality "1"]
[TimeControl "40/5400+30:1800+30"]

1. c4 {[%emt 0:00:00]} e6 {[%emt 0:00:00]} 2. Nc3 {[%emt 0:00:08]} d5 {[%emt 0:00:00]} 3. cxd5 {[%emt 0:00:52]} exd5 {[%emt 0:00:02]} 4. d4 {[%emt 0:01:17]} c6 {[%emt 0:00:35]} 5. Nf3 {[%emt 0:05:38]} Bd6 {[%emt 0:03:10]} 6. e3 {[%emt 0:04:42]} Nf6 {[%emt 0:02:39]} 7. Bd3 {[%emt 0:01:00]} Nbd7 {[%emt 0:02:58]} 8. O-O {[%emt 0:03:49]} O-O {[%emt 0:00:30]} 9. Rb1 {[%emt 0:01:42]} a5 {[%emt 0:01:18]} 10. a3 {[%emt 0:02:36]} Re8 {[%emt 0:01:58]} 11. Qc2 {[%emt 0:01:12]} Nf8 {[%emt 0:01:11]} 12. b4 {[%emt 0:01:22]} Qc7 {[%emt 0:03:49]} 13. h3 {[%emt 0:06:56]} Ng6 {[%emt 0:06:32]} 14. b5 {[%emt 0:05:38]} Be6 {[%emt 0:00:59]} 15. Ra1 {[%emt 0:24:32]} Qd7 {[%emt 0:02:49]} 16. Ng5 {[%emt 0:11:46]} Nf8 {[%emt 0:03:28]} 17. bxc6 {[%emt 0:05:43]} bxc6 {[%emt 0:01:11]} 18. Na4 {[%emt 0:02:51]} Qc7 {[%emt 0:04:34]} 19. Nxe6 {[%emt 0:04:36]} Nxe6 {[%emt 0:00:38]} 20. Nc5 {[%emt 0:01:00]} Nd8 {[%emt 0:14:54]} 21. a4 {[%emt 0:00:37]} Qe7 {[%emt 0:04:11]} 22. Ba3 {[%emt 0:01:28]} h6 {[%emt 0:01:29]} 23. Be2 {[%emt 0:03:08]} Ne4 {[%emt 0:11:02]} 24. Qc1 {[%emt 0:05:28]} Nxc5 {[%emt 0:04:00]} 25. Bxc5 {[%emt 0:00:10]} Bxc5 {[%emt 0:00:12]} 26. Qxc5 {[%emt 0:00:07]} Qxc5 {[%emt 0:00:08]} 27. dxc5 {[%emt 0:00:02]} Rb8 {[%emt 0:00:26]} 28. Rab1 {[%emt 0:00:35]} Ne6 {[%emt 0:00:56]} 29. Rxb8 {[%emt 0:00:31]} Rxb8 {[%emt 0:00:06]} 30. Rc1 {[%emt 0:01:20]} Rb4 {[%emt 0:01:07]} 31. Ba6 {[%emt 0:01:22]} Rxa4 {[%emt 0:00:58]} 32. Bb7 {[%emt 0:01:04]} Rc4 {[%emt 0:02:41]} 33. Rxc4 {[%emt 0:00:38]} dxc4 {[%emt 0:00:05]} 34. Bxc6 {[%emt 0:00:06]} Nxc5 {[%emt 0:00:06]} 35. Kf1 {[%emt 0:02:36]} a4 {[%emt 0:00:51]} 36. Bd5 {[%emt 0:00:17]} Nb3 {[%emt 0:02:10]} 37. Bxc4 {[%emt 0:01:09]} Nd2+ {[%emt 0:00:15]} 38. Ke1 {[%emt 0:00:16]} Nxc4 {[%emt 0:00:08]} 39. Kd1 {[%emt 0:00:18]} Kf8 {[%emt 0:00:39]} 40. Kc2 {[%emt 0:00:13]} Ke7 {[%emt 0:00:36]} 41. Kc3 {[%emt 0:30:14]} a3 {[%emt 0:30:46]} 42. Kb3 {[%emt 0:00:07]} Kd6 {[%emt 0:00:08]} 43. g3 {[%emt 0:01:51]} Ke5 {[%emt 0:01:03]} 44. f3 {[%emt 0:00:30]} Nxe3 {[%emt 0:00:40]} 45. Kxa3 {[%emt 0:00:14]} Nf1 {[%emt 0:00:18]} 46. f4+ {[%emt 0:00:33] normal} 0-1

[Event "GER-ch Youth U16w 2019"]
[Site "Willingen"]
[Date "2019.06.12"]
[Round "5.1"]
[White "Muedder, Melanie"]
[Black "Bardorz, Jana"]
[Result "0-1"]
[ECO "C45"]
[WhiteElo "1912"]
[BlackElo "1769"]
[Annotator "NA"]
[PlyCount "60"]
[EventDate "2019.06.07"]
[EventType "swiss"]
[EventRounds "9"]
[EventCountry "GER"]
[SourceTitle "playchess.com"]
[Source "ChessBase"]
[SourceQuality "1"]
[TimeControl "40/5400+30:1800+30"]

1. e4 {[%emt 0:00:00]} e5 {[%emt 0:00:00]} 2. Nf3 {[%emt 0:00:00]} Nc6 {[%emt 0:00:00]} 3. d4 {[%emt 0:00:00]} exd4 {[%emt 0:00:00]} 4. Nxd4 {[%emt 0:00:00]} Qf6 {[%emt 0:00:00]} 5. Be3 {[%emt 0:01:00]} Bc5 {[%emt 0:00:17]} 6. c3 {[%emt 0:00:13]} Nge7 {[%emt 0:00:55]} 7. Bb5 {[%emt 0:00:09]} a6 {[%emt 0:04:16]} 8. Ba4 {[%emt 0:00:13]} b5 {[%emt 0:04:29]} 9. Bc2 {[%emt 0:00:10]} Ne5 {[%emt 0:03:20]} 10. Nd2 {[%emt 0:08:15]} d6 {[%emt 0:05:24]} 11. h3 {[%emt 0:07:53]} Qg6 {[%emt 0:08:24]} 12. g4 {[%emt 0:12:47]} h5 {[%emt 0:13:49]} 13. g5 {[%emt 0:26:23]} f5 {[%emt 0:06:52]} 14. f4 {[%emt 0:05:45]} Nc4 {[%emt 0:04:37]} 15. Nxc4 {[%emt 0:01:59]} bxc4 {[%emt 0:02:21]} 16. exf5 {[%emt 0:11:26]} Nxf5 {[%emt 0:02:02]} 17. Qe2 {[%emt 0:04:33]} O-O {[%emt 0:06:37]} 18. Bxf5 {[%emt 0:10:50]} Bxf5 {[%emt 0:01:26]} 19. Qxc4+ {[%emt 0:00:20]} Kh8 {[%emt 0:01:40]} 20. O-O-O {[%emt 0:02:16]} Rae8 {[%emt 0:04:41]} 21. Nxf5 {[%emt 0:01:15]} Rxe3 {[%emt 0:03:04]} 22. Nh4 {[%emt 0:01:26]} Qe8 {[%emt 0:02:48]} 23. Qd5 {[%emt 0:01:29]} Rxf4 {[%emt 0:05:57]} 24. Ng2 {[%emt 0:02:33]} Re5 {[%emt 0:02:22]} 25. Qb7 {[%emt 0:00:54]} Rf2 {[%emt 0:02:22]} 26. Rhe1 {[%emt 0:00:37]} Ree2 {[%emt 0:05:12]} 27. Rxe2 {[%emt 0:00:25]} Qxe2 {[%emt 0:00:15]} 28. Qc8+ {[%emt 0:00:35]} Kh7 {[%emt 0:00:28]} 29. g6+ {[%emt 0:00:30]} Kxg6 {[%emt 0:00:44]} 30. Nh4+ {[%emt 0:00:30]} Kh7 {[%emt 0:00:36] normal} 0-1

[Event "GER-ch Youth U16w 2019"]
[Site "Willingen"]
[Date "2019.06.12"]
[Round "5.2"]
[White "Rothenberg, Nina"]
[Black "Fock, Amina"]
[Result "0-1"]
[ECO "A45"]
[WhiteElo "1653"]
[BlackElo "1723"]
[Annotator "NA"]
[PlyCount "82"]
[EventDate "2019.06.07"]
[EventType "swiss"]
[EventRounds "9"]
[EventCountry "GER"]
[SourceTitle "playchess.com"]
[Source "ChessBase"]
[SourceQuality "1"]
[TimeControl "40/5400+30:1800+30"]

1. d4 {[%emt 0:00:00]} Nf6 {[%emt 0:00:00]} 2. Bg5 {[%emt 0:00:00]} Ne4 {[%emt 0:02:24]} 3. Bf4 {[%emt 0:01:37]} d5 {[%emt 0:00:47]} 4. e3 {[%emt 0:02:45]} e6 {[%emt 0:02:11]} 5. Nf3 {[%emt 0:02:23]} c5 {[%emt 0:01:17]} 6. c3 {[%emt 0:01:20]} Nc6 {[%emt 0:03:16]} 7. Bd3 {[%emt 0:02:11]} Nf6 {[%emt 0:00:57]} 8. O-O {[%emt 0:01:08]} Be7 {[%emt 0:00:23]} 9. Nbd2 {[%emt 0:01:08]} cxd4 {[%emt 0:06:50]} 10. exd4 {[%emt 0:02:57]} O-O {[%emt 0:01:50]} 11. Re1 {[%emt 0:03:06]} Nh5 {[%emt 0:05:31]} 12. Be3 {[%emt 0:02:59]} Bd6 {[%emt 0:02:52]} 13. Ne5 {[%emt 0:12:43]} g6 {[%emt 0:11:25]} 14. Ndf3 {[%emt 0:04:29]} f6 {[%emt 0:07:17]} 15. Nxc6 {[%emt 0:12:04]} bxc6 {[%emt 0:00:07]} 16. Qc2 {[%emt 0:02:42]} Qc7 {[%emt 0:06:15]} 17. h3 {[%emt 0:03:19]} Nf4 {[%emt 0:09:00]} 18. Bf1 {[%emt 0:02:52]} a5 {[%emt 0:01:45]} 19. Rad1 {[%emt 0:04:27]} Qg7 {[%emt 0:03:21]} 20. Qd2 {[%emt 0:03:29]} g5 {[%emt 0:01:33]} 21. g3 {[%emt 0:06:31]} Ng6 {[%emt 0:04:05]} 22. Bg2 {[%emt 0:01:56]} Ne7 {[%emt 0:01:31]} 23. Qc2 {[%emt 0:05:17]} Nf5 {[%emt 0:01:45]} 24. Bc1 {[%emt 0:01:42]} g4 {[%emt 0:02:34]} 25. hxg4 {[%emt 0:02:32]} Qxg4 {[%emt 0:00:12]} 26. c4 {[%emt 0:02:20]} h5 {[%emt 0:02:43]} 27. cxd5 {[%emt 0:03:37]} cxd5 {[%emt 0:00:17]} 28. a3 {[%emt 0:02:33]} h4 {[%emt 0:02:26]} 29. Nxh4 {[%emt 0:00:59]} Nxh4 {[%emt 0:00:32]} 30. gxh4 {[%emt 0:00:07]} Ra7 {[%emt 0:02:12]} 31. Bh6 {[%emt 0:03:10]} Rd8 {[%emt 0:00:47]} 32. f3 {[%emt 0:01:41]} Qg3 {[%emt 0:00:45]} 33. Qf2 {[%emt 0:01:59]} Qh2+ {[%emt 0:01:36]} 34. Kf1 {[%emt 0:00:01]} Bg3 {[%emt 0:02:01]} 35. Qc2 {[%emt 0:00:23]} Ba6+ {[%emt 0:00:14]} 36. Re2 {[%emt 0:00:14]} Bxe2+ {[%emt 0:00:41]} 37. Qxe2 {[%emt 0:00:01]} Re7 {[%emt 0:05:43]} 38. Qc2 {[%emt 0:00:39]} Qxh4 {[%emt 0:01:06]} 39. Qg6+ {[%emt 0:00:51]} Kh8 {[%emt 0:00:08]} 40. Ke2 {[%emt 0:01:22]} Rg8 {[%emt 0:01:13]} 41. Qc2 {[%emt 0:31:10] normal} Qxh6 {[%emt 0:33:18] normal} 0-1

[Event "GER-ch Youth U16w 2019"]
[Site "Willingen"]
[Date "2019.06.12"]
[Round "5.3"]
[White "Wagner, Victoria"]
[Black "Glinzner, Alva"]
[Result "0-1"]
[ECO "B42"]
[WhiteElo "1808"]
[BlackElo "1833"]
[Annotator "NA"]
[PlyCount "80"]
[EventDate "2019.06.07"]
[EventType "swiss"]
[EventRounds "9"]
[EventCountry "GER"]
[SourceTitle "playchess.com"]
[Source "ChessBase"]
[SourceQuality "1"]
[TimeControl "40/5400+30:1800+30"]

1. e4 {[%emt 0:00:00]} c5 {[%emt 0:00:00]} 2. Nf3 {[%emt 0:00:00]} e6 {[%emt 0:00:00]} 3. d4 {[%emt 0:00:00]} cxd4 {[%emt 0:00:00]} 4. Nxd4 {[%emt 0:00:00]} a6 {[%emt 0:00:02]} 5. Bd3 {[%emt 0:00:08]} Qc7 {[%emt 0:00:26]} 6. Qe2 {[%emt 0:02:44]} d6 {[%emt 0:00:33]} 7. O-O {[%emt 0:00:35]} Nf6 {[%emt 0:00:19]} 8. c4 {[%emt 0:01:49]} Nbd7 {[%emt 0:00:20]} 9. b3 {[%emt 0:02:34]} b6 {[%emt 0:01:35]} 10. Bb2 {[%emt 0:02:55]} Bb7 {[%emt 0:00:39]} 11. Nd2 {[%emt 0:01:24]} Nc5 {[%emt 0:02:29]} 12. Bc2 {[%emt 0:02:40]} e5 {[%emt 0:07:01]} 13. Nf5 {[%emt 0:17:32]} Ne6 {[%emt 0:03:45]} 14. Ne3 Be7 15. Nd5 {[%emt 0:04:22]} Nxd5 {[%emt 0:01:25]} 16. exd5 {[%emt 0:04:56]} Nf4 {[%emt 0:05:21]} 17. Qd1 {[%emt 0:04:27]} O-O {[%emt 0:03:24]} 18. g3 {[%emt 0:00:30]} Ng6 {[%emt 0:00:30]} 19. h4 {[%emt 0:04:35]} f5 {[%emt 0:17:02]} 20. h5 {[%emt 0:04:56]} Nh8 {[%emt 0:00:19]} 21. f4 {[%emt 0:04:46]} e4 {[%emt 0:06:23]} 22. Rc1 {[%emt 0:15:49]} Bf6 {[%emt 0:02:45]} 23. Bxf6 {[%emt 0:02:13]} Rxf6 {[%emt 0:00:35]} 24. Kg2 {[%emt 0:04:26]} Re8 {[%emt 0:03:29]} 25. Qe2 {[%emt 0:02:12]} g6 {[%emt 0:04:53]} 26. hxg6 {[%emt 0:02:31]} Rxg6 {[%emt 0:02:15]} 27. Rh1 {[%emt 0:02:54]} Qg7 {[%emt 0:00:47]} 28. Qe3 {[%emt 0:00:47]} Qc7 {[%emt 0:11:02]} 29. Rh5 {[%emt 0:02:34]} Bc8 {[%emt 0:01:10]} 30. Rch1 {[%emt 0:00:44]} Rg7 {[%emt 0:00:52]} 31. Kf2 {[%emt 0:01:32]} Ng6 {[%emt 0:02:32]} 32. Nf3 {[%emt 0:02:18]} Ree7 {[%emt 0:07:28]} 33. Ng5 {[%emt 0:00:33]} b5 {[%emt 0:01:49]} 34. Rc1 {[%emt 0:01:24]} Qa5 {[%emt 0:04:42]} 35. Bb1 {[%emt 0:00:55]} bxc4 {[%emt 0:01:31]} 36. bxc4 {[%emt 0:01:02]} Rb7 {[%emt 0:00:40]} 37. Qe2 {[%emt 0:01:56]} Qa3 {[%emt 0:00:48]} 38. Rhh1 {[%emt 0:02:12]} h6 {[%emt 0:03:56]} 39. Ne6 {[%emt 0:00:27]} Bxe6 {[%emt 0:00:16]} 40. dxe6 {[%emt 0:00:05] normal} Nxf4 {[%emt 0:02:07] normal} 0-1